Workbook

Sheet Zylinder
C1: Tankform: | D1: Zylinder liegend
C2: Tankvolumen: | D2: 20,000 | E2: [ℓ] | O2: L | P2: =D2*10^-3/(PI()*P3^2) -> 4.074366543 | Q2: [m]
C3: Tankhöhe: | D3: 250 | E3: [cm] | O3: r | P3: =D3/200 -> 1.25 | Q3: [m]
C6: Peiltabelle | E6: ="Zylinder liegend "&TEXT(D2,"#.##0")&" ℓ" -> Zylinder liegend 20.000 ℓ | G6: ="Tankhöhe "&TEXT(D3,"#.##0")&" cm" -> Tankhöhe 250 cm
C8: cm | D8: Liter | E8: cm | F8: Liter | G8: cm | H8: Liter | I8: cm | J8: Liter
B9: 1 | C9: =ROUND($D$3/100*B9,0) -> 3 | D9: =ROUND((_r^2*_L*(ACOS((_r-(C9/100))/_r)-(_r-(C9/100))*SQRT(2*_r*(C9/100)-(C9/100)^2)/_r^2))*1000,0) -> 44 | E9: =ROUND($D$3/100*(B9+25),0) -> 65 | F9: =ROUND((_r^2*_L*(ACOS((_r-(E9/100))/_r)-(_r-(E9/100))*SQRT(2*_r*(E9/100)-(E9/100)^2)/_r^2))*1000,0) -> 4,132 | G9: =ROUND($D$3/100*(B9+50),0) -> 128 | H9: =ROUND((_r^2*_L*(ACOS((_r-(G9/100))/_r)-(_r-(G9/100))*SQRT(2*_r*(G9/100)-(G9/100)^2)/_r^2))*1000,0) -> 10,306 | I9: =ROUND($D$3/100*(B9+75),0) -> 190 | J9: =ROUND((_r^2*_L*(ACOS((_r-(I9/100))/_r)-(_r-(I9/100))*SQRT(2*_r*(I9/100)-(I9/100)^2)/_r^2))*1000,0) -> 16,309
B10: 2 | C10: =ROUND($D$3/100*B10,0) -> 5 | D10: 95 | E10: =ROUND($D$3/100*(B10+25),0) -> 68 | F10: 4,402 | G10: =ROUND($D$3/100*(B10+50),0) -> 130 | H10: 10,509 | I10: =ROUND($D$3/100*(B10+75),0) -> 193 | J10: 16,568
B11: 3 | C11: 8 | D11: 192 | E11: 70 | F11: 4,584 | G11: 133 | H11: 10,814 | I11: 195 | J11: 16,738
B12: 4 | C12: 10 | D12: 268 | E12: 73 | F12: 4,860 | G12: 135 | H12: 11,018 | I12: 198 | J12: 16,988
B13: 5 | C13: 13 | D13: 396 | E13: 75 | F13: 5,046 | G13: 138 | H13: 11,322 | I13: 200 | J13: 17,152
B14: 6 | C14: 15 | D14: 490 | E14: 78 | F14: 5,328 | G14: 140 | H14: 11,524 | I14: 203 | J14: 17,394
B15: 7 | C15: 18 | D15: 642 | E15: 80 | F15: 5,517 | G15: 143 | H15: 11,827 | I15: 205 | J15: 17,552
B16: 8 | C16: 20 | D16: 750 | E16: 83 | F16: 5,804 | G16: 145 | H16: 12,028 | I16: 208 | J16: 17,784
B17: 9 | C17: 23 | D17: 921 | E17: 85 | F17: 5,996 | G17: 148 | H17: 12,329 | I17: 210 | J17: 17,934
B18: 10 | C18: 25 | D18: 1,041 | E18: 88 | F18: 6,287 | G18: 150 | H18: 12,529 | I18: 213 | J18: 18,155
B19: 11 | C19: 28 | D19: 1,229 | E19: 90 | F19: 6,482 | G19: 153 | H19: 12,828 | I19: 215 | J19: 18,298
B20: 12 | C20: 30 | D20: 1,359 | E20: 93 | F20: 6,776 | G20: 155 | H20: 13,026 | I20: 218 | J20: 18,506
B21: 13 | C21: 33 | D21: 1,562 | E21: 95 | F21: 6,974 | G21: 158 | H21: 13,322 | I21: 220 | J21: 18,641
B22: 14 | C22: 35 | D22: 1,702 | E22: 98 | F22: 7,271 | G22: 160 | H22: 13,518 | I22: 223 | J22: 18,835
B23: 15 | C23: 38 | D23: 1,918 | E23: 100 | F23: 7,471 | G23: 163 | H23: 13,810 | I23: 225 | J23: 18,959
B24: 16 | C24: 40 | D24: 2,066 | E24: 103 | F24: 7,771 | G24: 165 | H24: 14,004 | I24: 228 | J24: 19,137
B25: 17 | C25: 43 | D25: 2,293 | E25: 105 | F25: 7,972 | G25: 168 | H25: 14,292 | I25: 230 | J25: 19,250
B26: 18 | C26: 45 | D26: 2,448 | E26: 108 | F26: 8,274 | G26: 170 | H26: 14,483 | I26: 233 | J26: 19,410
B27: 19 | C27: 48 | D27: 2,686 | E27: 110 | F27: 8,476 | G27: 173 | H27: 14,766 | I27: 235 | J27: 19,510
B28: 20 | C28: 50 | D28: 2,848 | E28: 113 | F28: 8,780 | G28: 175 | H28: 14,954 | I28: 238 | J28: 19,648
B29: 21 | C29: 53 | D29: 3,095 | E29: 115 | F29: 8,982 | G29: 178 | H29: 15,232 | I29: 240 | J29: 19,732
B30: 22 | C30: 55 | D30: 3,262 | E30: 118 | F30: 9,287 | G30: 180 | H30: 15,416 | I30: 243 | J30: 19,842
B31: 23 | C31: 58 | D31: 3,518 | E31: 120 | F31: 9,491 | G31: 183 | H31: 15,688 | I31: 245 | J31: 19,905
B32: 24 | C32: 60 | D32: 3,691 | E32: 123 | F32: 9,796 | G32: 185 | H32: 15,868 | I32: 248 | J32: 19,976
B33: 25 | C33: 63 | D33: 3,954 | E33: 125 | F33: 10,000 | G33: 188 | H33: 16,134 | I33: 250 | J33: 20,000

Sheet Kubus
C1: Tankform: | D1: Kubisch
C2: Tankvolumen: | D2: 20,000 | E2: [ℓ] | O2: A | P2: =(D2*10^-3)/(D3*10^-2) -> 8 | Q2: [m²]
C3: Tankhöhe: | D3: 250 | E3: [cm]
C6: Peiltabelle | E6: ="Kubus "&TEXT(D2,"#.##0")&" ℓ" -> Kubus 20.000 ℓ | G6: ="Tankhöhe "&TEXT(D3,"#.##0")&" cm" -> Tankhöhe 250 cm
C8: cm | D8: Liter | E8: cm | F8: Liter | G8: cm | H8: Liter | I8: cm | J8: Liter
B9: 1 | C9: =ROUND($D$3/100*B9,0) -> 3 | D9: =ROUND(_A*C9*10,0) -> 240 | E9: =ROUND($D$3/100*(B9+25),0) -> 65 | F9: =ROUND(_A*E9*10,0) -> 5,200 | G9: =ROUND($D$3/100*(B9+50),0) -> 128 | H9: =ROUND(_A*G9*10,0) -> 10,240 | I9: =ROUND($D$3/100*(B9+75),0) -> 190 | J9: =ROUND(_A*I9*10,0) -> 15,200
B10: 2 | C10: =ROUND($D$3/100*B10,0) -> 5 | D10: 400 | E10: =ROUND($D$3/100*(B10+25),0) -> 68 | F10: 5,440 | G10: =ROUND($D$3/100*(B10+50),0) -> 130 | H10: 10,400 | I10: =ROUND($D$3/100*(B10+75),0) -> 193 | J10: 15,440
B11: 3 | C11: 8 | D11: 640 | E11: 70 | F11: 5,600 | G11: 133 | H11: 10,640 | I11: 195 | J11: 15,600
B12: 4 | C12: 10 | D12: 800 | E12: 73 | F12: 5,840 | G12: 135 | H12: 10,800 | I12: 198 | J12: 15,840
B13: 5 | C13: 13 | D13: 1,040 | E13: 75 | F13: 6,000 | G13: 138 | H13: 11,040 | I13: 200 | J13: 16,000
B14: 6 | C14: 15 | D14: 1,200 | E14: 78 | F14: 6,240 | G14: 140 | H14: 11,200 | I14: 203 | J14: 16,240
B15: 7 | C15: 18 | D15: 1,440 | E15: 80 | F15: 6,400 | G15: 143 | H15: 11,440 | I15: 205 | J15: 16,400
B16: 8 | C16: 20 | D16: 1,600 | E16: 83 | F16: 6,640 | G16: 145 | H16: 11,600 | I16: 208 | J16: 16,640
B17: 9 | C17: 23 | D17: 1,840 | E17: 85 | F17: 6,800 | G17: 148 | H17: 11,840 | I17: 210 | J17: 16,800
B18: 10 | C18: 25 | D18: 2,000 | E18: 88 | F18: 7,040 | G18: 150 | H18: 12,000 | I18: 213 | J18: 17,040
B19: 11 | C19: 28 | D19: 2,240 | E19: 90 | F19: 7,200 | G19: 153 | H19: 12,240 | I19: 215 | J19: 17,200
B20: 12 | C20: 30 | D20: 2,400 | E20: 93 | F20: 7,440 | G20: 155 | H20: 12,400 | I20: 218 | J20: 17,440
B21: 13 | C21: 33 | D21: 2,640 | E21: 95 | F21: 7,600 | G21: 158 | H21: 12,640 | I21: 220 | J21: 17,600
B22: 14 | C22: 35 | D22: 2,800 | E22: 98 | F22: 7,840 | G22: 160 | H22: 12,800 | I22: 223 | J22: 17,840
B23: 15 | C23: 38 | D23: 3,040 | E23: 100 | F23: 8,000 | G23: 163 | H23: 13,040 | I23: 225 | J23: 18,000
B24: 16 | C24: 40 | D24: 3,200 | E24: 103 | F24: 8,240 | G24: 165 | H24: 13,200 | I24: 228 | J24: 18,240
B25: 17 | C25: 43 | D25: 3,440 | E25: 105 | F25: 8,400 | G25: 168 | H25: 13,440 | I25: 230 | J25: 18,400
B26: 18 | C26: 45 | D26: 3,600 | E26: 108 | F26: 8,640 | G26: 170 | H26: 13,600 | I26: 233 | J26: 18,640
B27: 19 | C27: 48 | D27: 3,840 | E27: 110 | F27: 8,800 | G27: 173 | H27: 13,840 | I27: 235 | J27: 18,800
B28: 20 | C28: 50 | D28: 4,000 | E28: 113 | F28: 9,040 | G28: 175 | H28: 14,000 | I28: 238 | J28: 19,040
B29: 21 | C29: 53 | D29: 4,240 | E29: 115 | F29: 9,200 | G29: 178 | H29: 14,240 | I29: 240 | J29: 19,200
B30: 22 | C30: 55 | D30: 4,400 | E30: 118 | F30: 9,440 | G30: 180 | H30: 14,400 | I30: 243 | J30: 19,440
B31: 23 | C31: 58 | D31: 4,640 | E31: 120 | F31: 9,600 | G31: 183 | H31: 14,640 | I31: 245 | J31: 19,600
B32: 24 | C32: 60 | D32: 4,800 | E32: 123 | F32: 9,840 | G32: 185 | H32: 14,800 | I32: 248 | J32: 19,840
B33: 25 | C33: 63 | D33: 5,040 | E33: 125 | F33: 10,000 | G33: 188 | H33: 15,040 | I33: 250 | J33: 20,000

Sheet Kugel
C1: Tankform: | D1: Kugel
C2: Tankvolumen: | D2: 8,500 | E2: [l] | H2: Reserve | I2: 1 | J2: [cm]
C3: Tankhöhe: | D3: =((D2/(1/6*PI()))^(1/3))*10 -> 253 | E3: [cm]
C6: Peiltabelle | E6: ="Kugel "&TEXT(D2,"#.##0")&" ℓ" -> Kugel 8.500 ℓ | G6: ="Tankhöhe "&TEXT(D3,"#.##0")&" cm" -> Tankhöhe 253 cm
E7: =IF(Reserve>0,"Berücksichtiger Abstand zwischen Tanksohle und Messleitung: "&Reserve&" cm","") -> Berücksichtiger Abstand zwischen Tanksohle und Messleitung: 1 cm
C8: cm | D8: Liter | E8: cm | F8: Liter | G8: cm | H8: Liter | I8: cm | J8: Liter
B9: 1 | C9: =ROUND($D$3/100*B9,0) -> 3 | D9: =IF(C9+Reserve>$D$3,"",ROUND(1/3*PI()*(C9+Reserve)^2*(3*$D$3/2-(C9+Reserve))*0.001,0)) -> 6 | E9: =ROUND($D$3/100*(B9+25),0) -> 66 | F9: =IF(E9+Reserve>$D$3,"",ROUND(1/3*PI()*(E9+Reserve)^2*(3*$D$3/2-(E9+Reserve))*0.001,0)) -> 1,470 | G9: =ROUND($D$3/100*(B9+50),0) -> 129 | H9: =IF(G9+Reserve>$D$3,"",ROUND(1/3*PI()*(G9+Reserve)^2*(3*$D$3/2-(G9+Reserve))*0.001,0)) -> 4,421 | I9: =ROUND($D$3/100*(B9+75),0) -> 192 | J9: =IF(I9+Reserve>$D$3,"",ROUND(1/3*PI()*(I9+Reserve)^2*(3*$D$3/2-(I9+Reserve))*0.001,0)) -> 7,287
B10: 2 | C10: =ROUND($D$3/100*B10,0) -> 5 | D10: 14 | E10: =ROUND($D$3/100*(B10+25),0) -> 68 | F10: 1,550 | G10: =ROUND($D$3/100*(B10+50),0) -> 132 | H10: 4,572 | I10: =ROUND($D$3/100*(B10+75),0) -> 195 | J10: 7,394
B11: 3 | C11: 8 | D11: 31 | E11: 71 | F11: 1,671 | G11: 134 | H11: 4,672 | I11: 198 | J11: 7,498
B12: 4 | C12: 10 | D12: 47 | E12: 73 | F12: 1,754 | G12: 137 | H12: 4,822 | I12: 200 | J12: 7,565
B13: 5 | C13: 13 | D13: 75 | E13: 76 | F13: 1,880 | G13: 139 | H13: 4,922 | I13: 203 | J13: 7,662
B14: 6 | C14: 15 | D14: 98 | E14: 78 | F14: 1,966 | G14: 142 | H14: 5,071 | I14: 205 | J14: 7,724
B15: 7 | C15: 18 | D15: 136 | E15: 81 | F15: 2,097 | G15: 144 | H15: 5,170 | I15: 208 | J15: 7,813
B16: 8 | C16: 20 | D16: 166 | E16: 84 | F16: 2,231 | G16: 147 | H16: 5,317 | I16: 210 | J16: 7,870
B17: 9 | C17: 23 | D17: 215 | E17: 86 | F17: 2,321 | G17: 149 | H17: 5,415 | I17: 213 | J17: 7,952
B18: 10 | C18: 25 | D18: 250 | E18: 89 | F18: 2,458 | G18: 152 | H18: 5,560 | I18: 215 | J18: 8,003
B19: 11 | C19: 28 | D19: 309 | E19: 91 | F19: 2,551 | G19: 154 | H19: 5,656 | I19: 218 | J19: 8,077
B20: 12 | C20: 30 | D20: 351 | E20: 94 | F20: 2,692 | G20: 157 | H20: 5,799 | I20: 220 | J20: 8,122
B21: 13 | C21: 33 | D21: 419 | E21: 96 | F21: 2,787 | G21: 160 | H21: 5,939 | I21: 223 | J21: 8,187
B22: 14 | C22: 35 | D22: 467 | E22: 99 | F22: 2,930 | G22: 162 | H22: 6,032 | I22: 225 | J22: 8,227
B23: 15 | C23: 38 | D23: 543 | E23: 101 | F23: 3,027 | G23: 165 | H23: 6,170 | I23: 228 | J23: 8,282
B24: 16 | C24: 41 | D24: 624 | E24: 104 | F24: 3,173 | G24: 167 | H24: 6,260 | I24: 230 | J24: 8,315
B25: 17 | C25: 43 | D25: 681 | E25: 106 | F25: 3,271 | G25: 170 | H25: 6,394 | I25: 233 | J25: 8,361
B26: 18 | C26: 46 | D26: 770 | E26: 109 | F26: 3,419 | G26: 172 | H26: 6,482 | I26: 235 | J26: 8,388
B27: 19 | C27: 48 | D27: 832 | E27: 111 | F27: 3,518 | G27: 175 | H27: 6,611 | I27: 238 | J27: 8,423
B28: 20 | C28: 51 | D28: 928 | E28: 114 | F28: 3,667 | G28: 177 | H28: 6,696 | I28: 241 | J28: 8,452
B29: 21 | C29: 53 | D29: 995 | E29: 116 | F29: 3,767 | G29: 180 | H29: 6,821 | I29: 243 | J29: 8,467
B30: 22 | C30: 56 | D30: 1,098 | E30: 119 | F30: 3,918 | G30: 182 | H30: 6,902 | I30: 246 | J30: 8,485
B31: 23 | C31: 58 | D31: 1,169 | E31: 122 | F31: 4,069 | G31: 185 | H31: 7,021 | I31: 248 | J31: 8,493
B32: 24 | C32: 61 | D32: 1,279 | E32: 124 | F32: 4,169 | G32: 187 | H32: 7,099 | I32: 251 | J32: 8,499
B33: 25 | C33: 63 | D33: 1,355 | E33: 127 | F33: 4,320 | G33: 190 | H33: 7,213 | I33: 253
